[Event "*** Titled Tuesday Blitz"]
[Site "Chess.com"]
[Date "2020.10.20"]
[Round "5"]
[White "Jumbo"]
[Black "Borsuk_Konstantin"]
[Result "1-0"]
[WhiteElo "2773"]
[BlackElo "2565"]
[TimeControl "180+1"]
[EndTime "10:58:23 PDT"]
[Termination "Jumbo won by resignation"]

1. d4 {[%clk 0:03:00.9]} 1... Nf6 {[%clk 0:02:59.6]} 2. Bf4 {[%clk 0:02:59.2]}
2... b6 {[%clk 0:02:58]} 3. c4 {[%clk 0:02:56.3]} 3... e6 {[%clk 0:02:56.8]} 4.
a3 {[%clk 0:02:55.9]} 4... Bb7 {[%clk 0:02:56.2]} 5. Nc3 {[%clk 0:02:55.9]} 5...
h6 {[%clk 0:02:52.8]} 6. e3 {[%clk 0:02:54.4]} 6... d6 {[%clk 0:02:51]} 7. h3
{[%clk 0:02:52.8]} 7... Nbd7 {[%clk 0:02:50.9]} 8. Nf3 {[%clk 0:02:53.2]} 8...
a6 {[%clk 0:02:47]} 9. Qc2 {[%clk 0:02:52.9]} 9... g6 {[%clk 0:02:39.2]} 10. e4
{[%clk 0:02:49.4]} 10... Bg7 {[%clk 0:02:31.9]} 11. Be3 {[%clk 0:02:48.4]} 11...
c5 {[%clk 0:02:26.8]} 12. d5 {[%clk 0:02:19.4]} 12... e5 {[%clk 0:02:01.5]} 13.
Be2 {[%clk 0:02:12.4]} 13... g5 {[%clk 0:01:47.4]} 14. h4 {[%clk 0:02:01.6]}
14... g4 {[%clk 0:01:45.8]} 15. Nd2 {[%clk 0:02:02]} 15... h5 {[%clk 0:01:43.9]}
16. Nf1 {[%clk 0:02:01.4]} 16... Nf8 {[%clk 0:01:35.2]} 17. Ng3 {[%clk
0:01:58.8]} 17... Ng6 {[%clk 0:01:35.1]} 18. Nf5 {[%clk 0:01:55.8]} 18... Bf8
{[%clk 0:01:34.8]} 19. g3 {[%clk 0:01:46.1]} 19... Ng8 {[%clk 0:01:12.3]} 20. f3
{[%clk 0:01:44.4]} 20... gxf3 {[%clk 0:01:10.5]} 21. Bxf3 {[%clk 0:01:45.3]}
21... N6e7 {[%clk 0:01:05.2]} 22. Bg5 {[%clk 0:01:32.8]} 22... Bc8 {[%clk
0:00:58.1]} 23. O-O-O {[%clk 0:01:28.2]} 23... f6 {[%clk 0:00:50.6]} 24. Be3
{[%clk 0:01:18.1]} 24... Kd7 {[%clk 0:00:46.7]} 25. Qe2 {[%clk 0:01:07.1]} 25...
Nxf5 {[%clk 0:00:36.9]} 26. exf5 {[%clk 0:01:07.2]} 26... Kc7 {[%clk 0:00:35.6]}
27. Bxh5 {[%clk 0:01:07.4]} 27... Bxf5 {[%clk 0:00:35.2]} 28. Rdf1 {[%clk
0:01:04.3]} 28... Bh7 {[%clk 0:00:32.7]} 29. Bg4 {[%clk 0:00:50.8]} 29... Nh6
{[%clk 0:00:23.5]} 30. Be6 {[%clk 0:00:50.6]} 30... f5 {[%clk 0:00:18.2]} 31.
Bg5 {[%clk 0:00:48.1]} 31... Qe8 {[%clk 0:00:17]} 32. g4 {[%clk 0:00:32.1]}
32... fxg4 {[%clk 0:00:13.4]} 33. Rf6 {[%clk 0:00:30.7]} 33... Bg7 {[%clk
0:00:12.1]} 34. Rxh6 {[%clk 0:00:17.7]} 34... Bxh6 {[%clk 0:00:12]} 35. Bxh6
{[%clk 0:00:18.6]} 35... Qg6 {[%clk 0:00:07.6]} 36. Be3 {[%clk 0:00:18.8]} 36...
Raf8 {[%clk 0:00:07.4]} 37. h5 {[%clk 0:00:19]} 37... Qg7 {[%clk 0:00:05.2]} 38.
Bd2 {[%clk 0:00:09.3]} 38... Bf5 {[%clk 0:00:04.6]} 39. Bxf5 {[%clk 0:00:07.4]}
39... Rxf5 {[%clk 0:00:04]} 40. h6 {[%clk 0:00:08]} 40... Qg6 {[%clk 0:00:04.4]}
41. Ne4 {[%clk 0:00:08.4]} 41... Rf3 {[%clk 0:00:03.5]} 42. Rg1 {[%clk 0:00:08]}
42... Qf5 {[%clk 0:00:02.8]} 43. a4 {[%clk 0:00:05.2]} 43... Rf8 {[%clk
0:00:01.3]} 44. a5 {[%clk 0:00:03]} 44... Qg6 {[%clk 0:00:01.5]} 45. axb6+
{[%clk 0:00:02.8]} 45... Kxb6 {[%clk 0:00:02.4]} 46. Nc3 {[%clk 0:00:02.6]}
46... Ka7 {[%clk 0:00:03]} 47. Qe4 {[%clk 0:00:02.8]} 47... Qh5 {[%clk
0:00:02.5]} 48. Qxg4 {[%clk 0:00:01.7]} 48... Rf1+ {[%clk 0:00:03.1]} 49. Kc2
{[%clk 0:00:02]} 49... Qe8 {[%clk 0:00:03.5]} 50. Qg6 {[%clk 0:00:01.8]} 50...
Ka8 {[%clk 0:00:03.9]} 51. Qxe8+ {[%clk 0:00:01.6]} 51... Rxe8 {[%clk
0:00:02.3]} 52. Rxf1 {[%clk 0:00:02.5]} 52... e4 {[%clk 0:00:02.8]} 53. Rh1
{[%clk 0:00:02.9]} 53... Kb7 {[%clk 0:00:03.4]} 54. Be1 {[%clk 0:00:03.8]} 54...
Rh8 {[%clk 0:00:03.9]} 55. Ne2 {[%clk 0:00:04.3]} 55... e3 {[%clk 0:00:04.8]}
56. Rh3 {[%clk 0:00:04.1]} 56... Rh7 {[%clk 0:00:05.7]} 57. Rxe3 {[%clk
0:00:04.2]} 57... Kc7 {[%clk 0:00:06.6]} 58. Re6 {[%clk 0:00:04.1]} 1-0

[Event "*** Titled Tuesday Blitz"]
[Site "Chess.com"]
[Date "2020.10.20"]
[Round "5"]
[White "Sadykov_Ramil"]
[Black "TimofeevAr"]
[Result "0-1"]
[WhiteElo "2546"]
[BlackElo "2791"]
[TimeControl "180+1"]
[EndTime "10:58:25 PDT"]
[Termination "TimofeevAr won by resignation"]

1. d4 {[%clk 0:03:00.9]} 1... Nf6 {[%clk 0:02:59]} 2. Nc3 {[%clk 0:02:59.9]}
2... g6 {[%clk 0:02:57.2]} 3. e4 {[%clk 0:02:59]} 3... d6 {[%clk 0:02:57.7]} 4.
Be3 {[%clk 0:02:57.8]} 4... c6 {[%clk 0:02:57]} 5. Qd2 {[%clk 0:02:47.2]} 5...
b5 {[%clk 0:02:56.5]} 6. f3 {[%clk 0:02:39.2]} 6... b4 {[%clk 0:02:56.4]} 7. Nd1
{[%clk 0:02:34.4]} 7... a5 {[%clk 0:02:55.5]} 8. a3 {[%clk 0:02:27.3]} 8... bxa3
{[%clk 0:02:52.4]} 9. Rxa3 {[%clk 0:02:27]} 9... Nbd7 {[%clk 0:02:50.3]} 10. Bd3
{[%clk 0:02:18.2]} 10... Bg7 {[%clk 0:02:48.7]} 11. Ne2 {[%clk 0:02:18]} 11...
O-O {[%clk 0:02:48.3]} 12. O-O {[%clk 0:02:17.2]} 12... c5 {[%clk 0:02:48.1]}
13. c3 {[%clk 0:02:04.5]} 13... Qc7 {[%clk 0:02:40.1]} 14. Nf2 {[%clk
0:01:57.6]} 14... Bb7 {[%clk 0:02:39]} 15. Rfa1 {[%clk 0:01:56.8]} 15... h5
{[%clk 0:02:25.2]} 16. Bb5 {[%clk 0:01:44.2]} 16... Nb6 {[%clk 0:02:21]} 17. b3
{[%clk 0:01:38.2]} 17... Nfd7 {[%clk 0:02:12]} 18. Qa2 {[%clk 0:01:13.8]} 18...
Rfc8 {[%clk 0:01:55.8]} 19. Nd3 {[%clk 0:01:00.1]} 19... Bc6 {[%clk 0:01:50.8]}
20. Bxc6 {[%clk 0:00:56]} 20... Qxc6 {[%clk 0:01:51.3]} 21. Nb2 {[%clk
0:00:32.7]} 21... Kh7 {[%clk 0:01:20.9]} 22. h3 {[%clk 0:00:26.4]} 22... Ra7
{[%clk 0:01:12.6]} 23. Na4 {[%clk 0:00:24.2]} 23... Rca8 {[%clk 0:01:04.8]} 24.
Qd2 {[%clk 0:00:14]} 24... Nxa4 {[%clk 0:01:02.6]} 25. Rxa4 {[%clk 0:00:14.9]}
25... Nb6 {[%clk 0:01:03.1]} 26. R4a2 {[%clk 0:00:14.2]} 26... a4 {[%clk
0:01:03]} 27. bxa4 {[%clk 0:00:14.3]} 27... Rxa4 {[%clk 0:01:03.1]} 28. Rxa4
{[%clk 0:00:14.4]} 28... Rxa4 {[%clk 0:01:03.2]} 29. Rxa4 {[%clk 0:00:14.6]}
29... Nxa4 {[%clk 0:01:03.5]} 30. Kh2 {[%clk 0:00:09.1]} 30... Nb6 {[%clk
0:01:03.1]} 31. Qd3 {[%clk 0:00:08.7]} 31... c4 {[%clk 0:00:57.8]} 32. Qb1
{[%clk 0:00:06.8]} 32... Qc7 {[%clk 0:00:47.5]} 33. Kg1 {[%clk 0:00:06.3]} 33...
d5 {[%clk 0:00:43.3]} 34. e5 {[%clk 0:00:04.1]} 34... e6 {[%clk 0:00:43.7]} 35.
f4 {[%clk 0:00:03.9]} 35... Qa7 {[%clk 0:00:43.6]} 36. Kf2 {[%clk 0:00:03.5]}
36... Nc8 {[%clk 0:00:40.5]} 37. Qb5 {[%clk 0:00:03.4]} 37... Ne7 {[%clk
0:00:39.9]} 38. Qe8 {[%clk 0:00:03.2]} 38... Nf5 {[%clk 0:00:39.7]} 39. g4
{[%clk 0:00:03.5]} 39... hxg4 {[%clk 0:00:35.6]} 40. hxg4 {[%clk 0:00:04.4]}
40... Nh6 {[%clk 0:00:35.9]} 41. g5 {[%clk 0:00:03.6]} 41... Nf5 {[%clk
0:00:35]} 42. Ng3 {[%clk 0:00:02.5]} 42... Qe7 {[%clk 0:00:24.5]} 43. Qxe7
{[%clk 0:00:01.4]} 43... Nxe7 {[%clk 0:00:24.8]} 44. Ne2 {[%clk 0:00:02.3]}
44... Nc6 {[%clk 0:00:25]} 45. Bc1 {[%clk 0:00:02.2]} 45... Bf8 {[%clk
0:00:25.3]} 46. Ke1 {[%clk 0:00:02.6]} 46... Na5 {[%clk 0:00:25.3]} 47. Kd2
{[%clk 0:00:03.1]} 47... Nb3+ {[%clk 0:00:25.9]} 48. Kc2 {[%clk 0:00:03.6]}
48... Kg7 {[%clk 0:00:25.4]} 49. Bb2 {[%clk 0:00:03.2]} 49... Be7 {[%clk
0:00:25.9]} 50. Nc1 {[%clk 0:00:04.1]} 50... Na5 {[%clk 0:00:25.5]} 51. Ne2
{[%clk 0:00:04.1]} 51... Kf8 {[%clk 0:00:25.3]} 52. Nc1 {[%clk 0:00:04.6]} 52...
Ke8 {[%clk 0:00:25.5]} 53. Kb1 {[%clk 0:00:05.1]} 53... Kd7 {[%clk 0:00:25.7]}
54. Ka2 {[%clk 0:00:05.6]} 54... Kc7 {[%clk 0:00:23.3]} 55. Ba3 {[%clk 0:00:06]}
55... Nc6 {[%clk 0:00:23.5]} 56. Bxe7 {[%clk 0:00:05.8]} 56... Nxe7 {[%clk
0:00:23.9]} 57. Ka3 {[%clk 0:00:05.3]} 57... Kb6 {[%clk 0:00:23.7]} 58. Kb4
{[%clk 0:00:05.6]} 58... Nf5 {[%clk 0:00:24.2]} 59. Ne2 {[%clk 0:00:05.9]} 59...
Ne3 {[%clk 0:00:24.5]} 60. Ka4 {[%clk 0:00:06.3]} 60... Nc2 {[%clk 0:00:24.7]}
61. Nc1 {[%clk 0:00:04.8]} 61... Ne1 {[%clk 0:00:24.6]} 62. Ne2 {[%clk 0:00:05]}
62... Nd3 {[%clk 0:00:24.8]} 63. Ka3 {[%clk 0:00:03.9]} 63... Ka5 {[%clk
0:00:25.2]} 64. Ka2 {[%clk 0:00:02.3]} 64... Ka4 {[%clk 0:00:25.6]} 65. Kb1
{[%clk 0:00:01.6]} 65... Kb3 {[%clk 0:00:25.4]} 66. Ka1 {[%clk 0:00:01.8]} 66...
Kc2 {[%clk 0:00:25.7]} 67. Ka2 {[%clk 0:00:02.1]} 67... Kd2 {[%clk 0:00:26.1]}
0-1

[Event "*** Titled Tuesday Blitz"]
[Site "Chess.com"]
[Date "2020.10.20"]
[Round "5"]
[White "plumalka"]
[Black "picturesquecheck"]
[Result "1/2-1/2"]
[WhiteElo "2421"]
[BlackElo "2134"]
[TimeControl "180+1"]
[EndTime "10:58:25 PDT"]
[Termination "Game drawn by repetition"]

1. e4 {[%clk 0:03:00.9]} 1... c5 {[%clk 0:02:43.6]} 2. Nf3 {[%clk 0:03:00.7]}
2... Nc6 {[%clk 0:02:41.4]} 3. d4 {[%clk 0:03:01]} 3... cxd4 {[%clk 0:02:42.3]}
4. Nxd4 {[%clk 0:03:01.8]} 4... Nf6 {[%clk 0:02:42.6]} 5. Nc3 {[%clk 0:03:01.3]}
5... d6 {[%clk 0:02:42.9]} 6. Bg5 {[%clk 0:02:59.9]} 6... e6 {[%clk 0:02:43.1]}
7. Bb5 {[%clk 0:02:59.4]} 7... Bd7 {[%clk 0:02:42.4]} 8. Bxc6 {[%clk 0:02:59.4]}
8... Bxc6 {[%clk 0:02:42.2]} 9. Nxc6 {[%clk 0:02:56.6]} 9... bxc6 {[%clk
0:02:41.7]} 10. e5 {[%clk 0:02:56.7]} 10... dxe5 {[%clk 0:02:38]} 11. Qf3 {[%clk
0:02:56.4]} 11... Qb6 {[%clk 0:02:19.1]} 12. Bxf6 {[%clk 0:02:43.3]} 12... gxf6
{[%clk 0:02:18]} 13. Qxf6 {[%clk 0:01:59.5]} 13... Rg8 {[%clk 0:02:17.9]} 14.
O-O {[%clk 0:01:45.8]} 14... Bg7 {[%clk 0:01:55.3]} 15. Qf3 {[%clk 0:01:41.9]}
15... Qc7 {[%clk 0:01:04.8]} 16. Ne4 {[%clk 0:01:35.9]} 16... Rd8 {[%clk
0:00:33.2]} 17. Rad1 {[%clk 0:01:29.3]} 17... Rd5 {[%clk 0:00:33]} 18. Qa3
{[%clk 0:01:05.7]} 18... f5 {[%clk 0:00:29.4]} 19. Nd6+ {[%clk 0:00:59.7]} 19...
Kd7 {[%clk 0:00:26.3]} 20. Nc4 {[%clk 0:00:55.3]} 20... Bf8 {[%clk 0:00:24.6]}
21. Qh3 {[%clk 0:00:51.4]} 21... Kc8 {[%clk 0:00:23.1]} 22. Ne3 {[%clk
0:00:48.4]} 22... Rxd1 {[%clk 0:00:20.7]} 23. Rxd1 {[%clk 0:00:49.3]} 23... Bc5
{[%clk 0:00:20.9]} 24. c3 {[%clk 0:00:47.5]} 24... Qg7 {[%clk 0:00:20.6]} 25.
Nf1 {[%clk 0:00:39.1]} 25... Qg4 {[%clk 0:00:19.8]} 26. Qxg4 {[%clk 0:00:36.8]}
26... Rxg4 {[%clk 0:00:20.7]} 27. Ne3 {[%clk 0:00:31.8]} 27... Bxe3 {[%clk
0:00:20.1]} 28. fxe3 {[%clk 0:00:32.7]} 28... Ra4 {[%clk 0:00:20.6]} 29. a3
{[%clk 0:00:32.5]} 29... Re4 {[%clk 0:00:21.5]} 30. Kf2 {[%clk 0:00:32.2]} 30...
Kc7 {[%clk 0:00:22.4]} 31. h3 {[%clk 0:00:30]} 31... f4 {[%clk 0:00:22.2]} 32.
exf4 {[%clk 0:00:29.3]} 32... Rxf4+ {[%clk 0:00:22.8]} 33. Ke3 {[%clk
0:00:29.1]} 33... Ra4 {[%clk 0:00:20]} 34. Rf1 {[%clk 0:00:28.9]} 34... Kd6
{[%clk 0:00:18.8]} 35. Rf7 {[%clk 0:00:28]} 35... h6 {[%clk 0:00:19]} 36. Rh7
{[%clk 0:00:27.6]} 36... Ra6 {[%clk 0:00:18.8]} 37. Rxh6 {[%clk 0:00:27.3]}
37... Rb6 {[%clk 0:00:19.5]} 38. b4 {[%clk 0:00:26.9]} 38... Ra6 {[%clk
0:00:20]} 39. g4 {[%clk 0:00:14.7]} 39... Rxa3 {[%clk 0:00:20.9]} 40. Kd3 {[%clk
0:00:14.4]} 40... e4+ {[%clk 0:00:20]} 41. Kd4 {[%clk 0:00:12.4]} 41... e3
{[%clk 0:00:19.7]} 42. Kxe3 {[%clk 0:00:12.8]} 42... Rxc3+ {[%clk 0:00:20]} 43.
Kd4 {[%clk 0:00:13.3]} 43... Rb3 {[%clk 0:00:20.5]} 44. Kc4 {[%clk 0:00:13.2]}
44... Rg3 {[%clk 0:00:20.1]} 45. Rh7 {[%clk 0:00:11.8]} 45... a6 {[%clk
0:00:18.3]} 46. Rh6 {[%clk 0:00:08.9]} 46... Rg2 {[%clk 0:00:16.8]} 47. Rg6
{[%clk 0:00:07.9]} 47... Rc2+ {[%clk 0:00:16.6]} 48. Kb3 {[%clk 0:00:07.6]}
48... Rh2 {[%clk 0:00:17.5]} 49. Rh6 {[%clk 0:00:07.2]} 49... Rg2 {[%clk
0:00:17.9]} 50. Rh5 {[%clk 0:00:06.7]} 50... Rg3+ {[%clk 0:00:17.9]} 51. Kc4
{[%clk 0:00:06.6]} 51... e5 {[%clk 0:00:18.8]} 52. g5 {[%clk 0:00:06.4]} 52...
e4 {[%clk 0:00:17.8]} 53. h4 {[%clk 0:00:05.3]} 53... e3 {[%clk 0:00:17.5]} 54.
Kd3 {[%clk 0:00:06.2]} 54... Ke5 {[%clk 0:00:17.7]} 55. Rh6 {[%clk 0:00:05.5]}
55... Kf4 {[%clk 0:00:17.7]} 56. Rf6+ {[%clk 0:00:05.3]} 56... Ke5 {[%clk
0:00:17.2]} 57. Ke2 {[%clk 0:00:04.3]} 57... Ke4 {[%clk 0:00:15.6]} 58. Re6+
{[%clk 0:00:04.1]} 58... Kd4 {[%clk 0:00:16.1]} 59. Rxc6 {[%clk 0:00:02.8]}
59... Rg2+ {[%clk 0:00:15.7]} 60. Ke1 {[%clk 0:00:02.1]} 60... Rg1+ {[%clk
0:00:16]} 61. Ke2 {[%clk 0:00:02]} 61... Rg2+ {[%clk 0:00:16.9]} 62. Ke1 {[%clk
0:00:02.6]} 62... Rg1+ {[%clk 0:00:17.4]} 63. Ke2 {[%clk 0:00:03.5]} 63... Rg2+
{[%clk 0:00:17.1]} 1/2-1/2

[Event "*** Titled Tuesday Blitz"]
[Site "Chess.com"]
[Date "2020.10.20"]
[Round "5"]
[White "SARGISMV"]
[Black "MaxLeto"]
[Result "1/2-1/2"]
[WhiteElo "2504"]
[BlackElo "2345"]
[TimeControl "180+1"]
[EndTime "10:58:28 PDT"]
[Termination "Game drawn by repetition"]

1. d4 {[%clk 0:02:33.6]} 1... Nf6 {[%clk 0:02:59.5]} 2. c4 {[%clk 0:02:27.4]}
2... g6 {[%clk 0:02:58.9]} 3. Nc3 {[%clk 0:02:28]} 3... Bg7 {[%clk 0:02:58.5]}
4. e4 {[%clk 0:02:28.6]} 4... d6 {[%clk 0:02:59]} 5. Nf3 {[%clk 0:02:29]} 5...
O-O {[%clk 0:02:58.9]} 6. Be2 {[%clk 0:02:29.6]} 6... e5 {[%clk 0:02:57.6]} 7.
O-O {[%clk 0:02:29.9]} 7... Nc6 {[%clk 0:02:54.4]} 8. d5 {[%clk 0:02:30.5]} 8...
Ne7 {[%clk 0:02:53.9]} 9. Ne1 {[%clk 0:02:31.1]} 9... Nd7 {[%clk 0:02:52.2]} 10.
Nd3 {[%clk 0:02:31.6]} 10... f5 {[%clk 0:02:50.8]} 11. Bd2 {[%clk 0:02:32.2]}
11... Nf6 {[%clk 0:02:36.8]} 12. f3 {[%clk 0:02:31.7]} 12... c5 {[%clk
0:02:20.7]} 13. Rb1 {[%clk 0:02:15.5]} 13... f4 {[%clk 0:01:24.7]} 14. b4 {[%clk
0:02:14.6]} 14... b6 {[%clk 0:01:24.7]} 15. bxc5 {[%clk 0:02:13.9]} 15... bxc5
{[%clk 0:01:25.6]} 16. g4 {[%clk 0:02:11.2]} 16... fxg3 {[%clk 0:01:15.8]} 17.
hxg3 {[%clk 0:02:10.5]} 17... Rf7 {[%clk 0:00:58.4]} 18. Kg2 {[%clk 0:02:06]}
18... Qf8 {[%clk 0:00:50.4]} 19. Nb5 {[%clk 0:02:01.1]} 19... Ne8 {[%clk
0:00:49.6]} 20. Rh1 {[%clk 0:01:40.7]} 20... h5 {[%clk 0:00:49.5]} 21. Bg5
{[%clk 0:01:39.1]} 21... Bh6 {[%clk 0:00:44.4]} 22. Qd2 {[%clk 0:01:35.2]} 22...
Bxg5 {[%clk 0:00:40.2]} 23. Qxg5 {[%clk 0:01:36.1]} 23... Qg7 {[%clk 0:00:39.4]}
24. Rb3 {[%clk 0:01:09.8]} 24... Rb8 {[%clk 0:00:28.6]} 25. Nxa7 {[%clk
0:01:04.8]} 25... Rxb3 {[%clk 0:00:22.6]} 26. axb3 {[%clk 0:01:02.9]} 26... Bd7
{[%clk 0:00:23.2]} 27. Ra1 {[%clk 0:00:43.7]} 27... Nf6 {[%clk 0:00:19.6]} 28.
Ra6 {[%clk 0:00:34.4]} 28... Nh7 {[%clk 0:00:19.3]} 29. Qe3 {[%clk 0:00:32.1]}
29... Qf6 {[%clk 0:00:17.9]} 30. Nc6 {[%clk 0:00:27.8]} 30... Ng5 {[%clk
0:00:14.8]} 31. Nxe7+ {[%clk 0:00:20.1]} 31... Qxe7 {[%clk 0:00:15.7]} 32. Ra7
{[%clk 0:00:17.6]} 32... h4 {[%clk 0:00:14.1]} 33. Rxd7 {[%clk 0:00:16.2]} 33...
h3+ {[%clk 0:00:09.4]} 34. Kh2 {[%clk 0:00:13.7]} 34... Nxf3+ {[%clk 0:00:09.2]}
35. Bxf3 {[%clk 0:00:14]} 35... Qxd7 {[%clk 0:00:09.8]} 36. g4 {[%clk
0:00:07.2]} 36... Qe7 {[%clk 0:00:08.6]} 37. Kxh3 {[%clk 0:00:06.2]} 37... Qf8
{[%clk 0:00:06.9]} 38. Kg2 {[%clk 0:00:05]} 38... Kg7 {[%clk 0:00:05.5]} 39. Nf2
{[%clk 0:00:05]} 39... Qb8 {[%clk 0:00:03.9]} 40. Nh3 {[%clk 0:00:05.3]} 40...
Qb4 {[%clk 0:00:03.8]} 41. Ng5 {[%clk 0:00:05.5]} 41... Rb7 {[%clk 0:00:03.5]}
42. Kg3 {[%clk 0:00:06.2]} 42... Qxb3 {[%clk 0:00:03.5]} 43. Qg1 {[%clk
0:00:06.7]} 43... Qb1 {[%clk 0:00:02.9]} 44. Qh2 {[%clk 0:00:06.6]} 44... Qe1+
{[%clk 0:00:03.1]} 45. Qf2 {[%clk 0:00:04.1]} 45... Qxf2+ {[%clk 0:00:02.8]} 46.
Kxf2 {[%clk 0:00:05]} 46... Rb2+ {[%clk 0:00:03]} 47. Be2 {[%clk 0:00:05.2]}
47... Rc2 {[%clk 0:00:02.6]} 48. Ne6+ {[%clk 0:00:05.9]} 48... Kf6 {[%clk
0:00:02.8]} 49. Nd8 {[%clk 0:00:06]} 49... Ke7 {[%clk 0:00:02.9]} 50. Nc6+
{[%clk 0:00:06.2]} 50... Kd7 {[%clk 0:00:03.3]} 51. Ke3 {[%clk 0:00:06.4]} 51...
g5 {[%clk 0:00:03.3]} 52. Na7 {[%clk 0:00:05.8]} 52... Rb2 {[%clk 0:00:03.2]}
53. Nb5 {[%clk 0:00:06.4]} 53... Rb3+ {[%clk 0:00:03.6]} 54. Kf2 {[%clk
0:00:07]} 54... Rb4 {[%clk 0:00:03.1]} 55. Nc3 {[%clk 0:00:06.9]} 55... Rb3
{[%clk 0:00:03.1]} 56. Nd1 {[%clk 0:00:07.8]} 56... Rb2 {[%clk 0:00:02.9]} 57.
Ne3 {[%clk 0:00:08.7]} 57... Rb3 {[%clk 0:00:02.8]} 58. Nf5 {[%clk 0:00:09.6]}
58... Rb2 {[%clk 0:00:02.8]} 59. Nh6 {[%clk 0:00:09.7]} 59... Ke7 {[%clk
0:00:02.1]} 60. Nf5+ {[%clk 0:00:09.9]} 60... Kd7 {[%clk 0:00:02.6]} 61. Ke3
{[%clk 0:00:09.6]} 61... Rb3+ {[%clk 0:00:02.9]} 62. Bd3 {[%clk 0:00:09]} 62...
Rb2 {[%clk 0:00:03.4]} 63. Be2 {[%clk 0:00:09]} 63... Rb3+ {[%clk 0:00:03.6]}
64. Kf2 {[%clk 0:00:08.6]} 64... Rb2 {[%clk 0:00:04.1]} 1/2-1/2

[Event "*** Titled Tuesday Blitz"]
[Site "Chess.com"]
[Date "2020.10.20"]
[Round "5"]
[White "googlegoom"]
[Black "EvgenyRomanov"]
[Result "1-0"]
[WhiteElo "2369"]
[BlackElo "2569"]
[TimeControl "180+1"]
[EndTime "10:58:28 PDT"]
[Termination "googlegoom won by resignation"]

1. Nf3 {[%clk 0:03:00.9]} 1... d5 {[%clk 0:02:59]} 2. b3 {[%clk 0:03:00.5]} 2...
c5 {[%clk 0:02:57.7]} 3. Bb2 {[%clk 0:03:00.5]} 3... Nc6 {[%clk 0:02:57.9]} 4.
e3 {[%clk 0:03:00.6]} 4... Nf6 {[%clk 0:02:58]} 5. Be2 {[%clk 0:03:00.3]} 5...
e6 {[%clk 0:02:56.4]} 6. O-O {[%clk 0:03:00]} 6... Bd6 {[%clk 0:02:56.3]} 7. d4
{[%clk 0:03:00.3]} 7... O-O {[%clk 0:02:55.5]} 8. Nbd2 {[%clk 0:03:00.1]} 8...
b6 {[%clk 0:02:48.6]} 9. c4 {[%clk 0:02:59.8]} 9... Bb7 {[%clk 0:02:48.8]} 10.
Rc1 {[%clk 0:02:59.7]} 10... cxd4 {[%clk 0:02:45.8]} 11. Nxd4 {[%clk 0:02:58.8]}
11... Nxd4 {[%clk 0:02:37.2]} 12. Bxd4 {[%clk 0:02:58.2]} 12... e5 {[%clk
0:02:26.9]} 13. Bb2 {[%clk 0:02:57.5]} 13... d4 {[%clk 0:02:27]} 14. exd4 {[%clk
0:02:55.3]} 14... exd4 {[%clk 0:02:26.4]} 15. Bf3 {[%clk 0:02:55.9]} 15... Bxf3
{[%clk 0:02:16.1]} 16. Nxf3 {[%clk 0:02:55.3]} 16... d3 {[%clk 0:02:14.8]} 17.
Bxf6 {[%clk 0:02:52.6]} 17... Qxf6 {[%clk 0:02:14]} 18. Qxd3 {[%clk 0:02:51.9]}
18... Rad8 {[%clk 0:02:13.2]} 19. Qc2 {[%clk 0:02:51.5]} 19... g5 {[%clk
0:02:04.3]} 20. h3 {[%clk 0:02:47.4]} 20... h5 {[%clk 0:02:03.4]} 21. Rfd1
{[%clk 0:02:09.7]} 21... g4 {[%clk 0:02:02.7]} 22. hxg4 {[%clk 0:02:10.1]} 22...
hxg4 {[%clk 0:02:03.5]} 23. Nh2 {[%clk 0:02:10.7]} 23... g3 {[%clk 0:01:54.3]}
24. fxg3 {[%clk 0:01:58.7]} 24... Kg7 {[%clk 0:01:52.7]} 25. Nf3 {[%clk
0:01:06.7]} 25... Bc5+ {[%clk 0:01:47]} 26. Kf1 {[%clk 0:01:02.8]} 26... Qh6
{[%clk 0:01:46]} 27. Qc3+ {[%clk 0:00:36.6]} 27... f6 {[%clk 0:01:33.4]} 28. Nh4
{[%clk 0:00:36.7]} 28... Qh5 {[%clk 0:01:22.3]} 29. Rxd8 {[%clk 0:00:33.5]}
29... Rxd8 {[%clk 0:01:20.1]} 30. Re1 {[%clk 0:00:32.2]} 30... Kf7 {[%clk
0:00:56.8]} 31. Qf3 {[%clk 0:00:31.9]} 31... Qg5 {[%clk 0:00:47.2]} 32. Qf4
{[%clk 0:00:30.8]} 32... Rd2 {[%clk 0:00:40.5]} 33. Qc7+ {[%clk 0:00:14.7]}
33... Kf8 {[%clk 0:00:38.4]} 34. Qc8+ {[%clk 0:00:13]} 34... Kg7 {[%clk
0:00:34.9]} 35. Nf5+ {[%clk 0:00:11.6]} 35... Kg6 {[%clk 0:00:27.3]} 36. Nh4+
{[%clk 0:00:07.8]} 36... Kf7 {[%clk 0:00:18.6]} 37. Qe8+ {[%clk 0:00:04.2]}
37... Kg7 {[%clk 0:00:18.6]} 38. Re7+ {[%clk 0:00:03.3]} 38... Bxe7 {[%clk
0:00:17.9]} 39. Qxe7+ {[%clk 0:00:03.5]} 39... Kg8 {[%clk 0:00:17.7]} 40. Qe8+
{[%clk 0:00:03]} 40... Kg7 {[%clk 0:00:17.8]} 41. Qe7+ {[%clk 0:00:03.5]} 41...
Kg8 {[%clk 0:00:17.5]} 42. Qe8+ {[%clk 0:00:04]} 42... Kh7 {[%clk 0:00:17.6]}
43. Qe4+ {[%clk 0:00:01.9]} 43... Kh6 {[%clk 0:00:15.4]} 44. Nf5+ {[%clk
0:00:01.6]} 44... Kh5 {[%clk 0:00:15.3]} 45. Qf3+ {[%clk 0:00:01.6]} 45... Qg4
{[%clk 0:00:14.6]} 46. Ng7+ {[%clk 0:00:02.2]} 46... Kg5 {[%clk 0:00:13.9]} 47.
Qe3+ {[%clk 0:00:02.3]} 47... Kg6 {[%clk 0:00:13.9]} 48. Qxd2 {[%clk 0:00:02]}
48... Kxg7 {[%clk 0:00:14.3]} 49. Qe2 {[%clk 0:00:02.2]} 49... Qd4 {[%clk
0:00:14.2]} 50. Qf2 {[%clk 0:00:01.1]} 50... Qd1+ {[%clk 0:00:13.7]} 51. Qe1
{[%clk 0:00:02]} 51... Qd4 {[%clk 0:00:13.4]} 52. Qe2 {[%clk 0:00:02.9]} 52...
Kg6 {[%clk 0:00:11.4]} 53. g4 {[%clk 0:00:03.1]} 53... Kg5 {[%clk 0:00:10.5]}
54. g3 {[%clk 0:00:04]} 54... Qc3 {[%clk 0:00:10]} 55. Kg2 {[%clk 0:00:04.3]}
55... a5 {[%clk 0:00:10.2]} 56. Qf2 {[%clk 0:00:04.7]} 56... Qe5 {[%clk
0:00:09.3]} 57. Qf5+ {[%clk 0:00:04.1]} 57... Qxf5 {[%clk 0:00:08.9]} 58. gxf5
{[%clk 0:00:05]} 58... Kxf5 {[%clk 0:00:09.5]} 59. Kf3 {[%clk 0:00:05.9]} 59...
Kg5 {[%clk 0:00:09.8]} 60. a3 {[%clk 0:00:05.3]} 60... f5 {[%clk 0:00:09.7]} 61.
b4 {[%clk 0:00:05.6]} 61... axb4 {[%clk 0:00:10.1]} 62. axb4 {[%clk 0:00:06.5]}
62... Kf6 {[%clk 0:00:10.4]} 63. c5 {[%clk 0:00:07.1]} 63... bxc5 {[%clk
0:00:10]} 64. bxc5 {[%clk 0:00:07.8]} 64... Ke6 {[%clk 0:00:10.4]} 65. Kf4
{[%clk 0:00:08.3]} 65... Kd5 {[%clk 0:00:10.1]} 66. Kxf5 {[%clk 0:00:09]} 66...
Kxc5 {[%clk 0:00:10.6]} 67. g4 {[%clk 0:00:09.9]} 1-0